[Event "CZE-ch U12 Open 2023"]
[Site "Teplice"]
[Date "2023.03.13"]
[Round "4.9"]
[White "Kupka, Alexandr"]
[Black "Sboev, Kirill"]
[Result "0-1"]
[ECO "C50"]
[WhiteElo "1220"]
[BlackElo "1506"]
[Annotator "NA RC COMBH"]
[PlyCount "72"]
[EventDate "2023.03.09"]
[EventType "swiss"]
[EventCountry "CZE"]
[SourceTitle "playchess.com"]
[Source "ChessBase"]
[SourceQuality "1"]
[TimeControl "40/5400+30:1800+30"]

1. e4 {[%emt 0:00:02]} e5 {[%emt 0:00:07]} 2. Nf3 {[%emt 0:00:03]} Nc6 {[%emt 0:00:09]} 3. Bc4 {[%emt 0:00:09]} Nf6 {[%emt 0:00:09]} 4. d3 {[%emt 0:00:12]} Bc5 {[%emt 0:00:09]} 5. c3 {[%emt 0:00:24]} O-O {[%emt 0:00:36]} 6. O-O {[%emt 0:00:18]} d5 {[%emt 0:01:49]} 7. exd5 {[%emt 0:01:12]} Nxd5 {[%emt 0:00:40]} 8. Re1 {[%emt 0:00:50]} Re8 {[%emt 0:01:47]} 9. Nbd2 {[%emt 0:04:14]} Nb6 10. Bb3 {[%emt 0:00:59]} Qxd3 {[%emt 0:12:24]} 11. Ng5 {[%emt 0:04:23]} Re7 {[%emt 0:05:02]} 12. Qh5 {[%emt 0:01:07]} Qf5 {[%emt 0:03:04]} 13. Ndf3 {[%emt 0:04:10]} h6 {[%emt 0:02:25]} 14. Bxf7+ {[%emt 0:11:40]} Rxf7 {[%emt 0:00:12]} 15. Qxf7+ {[%emt 0:00:30]} Qxf7 {[%emt 0:00:20]} 16. Nxf7 {[%emt 0:00:06]} Kxf7 {[%emt 0:00:16]} 17. Nxe5+ {[%emt 0:00:12]} Nxe5 {[%emt 0:00:17]} 18. Rxe5 {[%emt 0:00:10]} Bd6 {[%emt 0:00:23]} 19. Re1 {[%emt 0:00:47]} Bf5 {[%emt 0:02:13]} 20. Be3 {[%emt 0:00:40]} Nc4 {[%emt 0:01:17]} 21. b3 {[%emt 0:02:38]} Nxe3 {[%emt 0:00:20]} 22. Rxe3 {[%emt 0:00:16]} Rd8 {[%emt 0:00:56]} 23. Rae1 {[%emt 0:01:05]} g6 {[%emt 0:02:11]} 24. c4 {[%emt 0:02:43]} Bb4 {[%emt 0:00:58]} 25. Ra1 {[%emt 0:01:09]} Rd2 {[%emt 0:00:38]} 26. a3 {[%emt 0:00:39]} Bxa3 {[%emt 0:00:21]} 27. g3 {[%emt 0:01:06]} Bc5 {[%emt 0:00:14]} 28. Rf3 {[%emt 0:00:13]} Kg7 {[%emt 0:01:24]} 29. b4 {[%emt 0:01:06]} Bxb4 {[%emt 0:00:39]} 30. h4 {[%emt 0:04:40]} h5 {[%emt 0:02:28]} 31. Rxa7 {[%emt 0:01:09]} Be4 {[%emt 0:00:27]} 32. Kg2 {[%emt 0:01:21]} Rd3 {[%emt 0:00:15]} 33. Ra4 {[%emt 0:00:33]} Bxf3+ {[%emt 0:00:08]} 34. Kh3 {[%emt 0:00:23]} Rd1 {[%emt 0:00:10]} 35. g4 {[%emt 0:00:32]} hxg4+ {[%emt 0:00:12]} 36. Kg3 {[%emt 0:00:07]} Bd6# {[%emt 0:00:04]} 0-1

[Event "CZE-ch U12 Open 2023"]
[Site "Teplice"]
[Date "2023.03.13"]
[Round "4.10"]
[White "Rendl, Lubos"]
[Black "Tejnor, Martin"]
[Result "1-0"]
[ECO "D85"]
[WhiteElo "1477"]
[BlackElo "1360"]
[Annotator "NA RC COMBH"]
[PlyCount "65"]
[EventDate "2023.03.09"]
[EventType "swiss"]
[EventCountry "CZE"]
[SourceTitle "playchess.com"]
[Source "ChessBase"]
[SourceQuality "1"]
[TimeControl "40/5400+30:1800+30"]

1. d4 {[%emt 0:00:08]} Nf6 {[%emt 0:00:14]} 2. c4 {[%emt 0:00:09]} g6 {[%emt 0:00:11]} 3. Nc3 {[%emt 0:00:10]} d5 {[%emt 0:00:54]} 4. cxd5 {[%emt 0:01:24]} Nxd5 {[%emt 0:00:23]} 5. e4 {[%emt 0:00:37]} Nxc3 {[%emt 0:01:32]} 6. bxc3 {[%emt 0:00:11]} Bg7 {[%emt 0:00:35]} 7. Nf3 {[%emt 0:02:46]} O-O {[%emt 0:03:37]} 8. Be3 {[%emt 0:04:41]} c5 {[%emt 0:00:14]} 9. h4 {[%emt 0:01:32]} Bg4 {[%emt 0:07:05]} 10. Rb1 {[%emt 0:11:15]} Qc7 {[%emt 0:05:10]} 11. Qd2 {[%emt 0:01:18]} Rd8 {[%emt 0:02:56]} 12. Be2 {[%emt 0:10:14]} cxd4 {[%emt 0:03:12]} 13. cxd4 {[%emt 0:02:28]} Nc6 {[%emt 0:01:34]} 14. d5 {[%emt 0:07:44]} Ne5 {[%emt 0:07:24]} 15. Nxe5 {[%emt 0:11:28]} Bxe5 {[%emt 0:01:14]} 16. O-O {[%emt 0:06:42]} Bxe2 {[%emt 0:01:31]} 17. Qxe2 {[%emt 0:00:32]} b6 {[%emt 0:03:17]} 18. Rfc1 {[%emt 0:01:58]} Qd7 {[%emt 0:03:45]} 19. Rc6 {[%emt 0:04:08]} Rac8 {[%emt 0:06:57]} 20. Rbc1 {[%emt 0:01:25]} Rxc6 {[%emt 0:01:20]} 21. Rxc6 {[%emt 0:00:59]} Rc8 {[%emt 0:01:50]} 22. f4 {[%emt 0:03:53]} Bf6 {[%emt 0:01:03]} 23. Qc4 {[%emt 0:01:36]} Ra8 {[%emt 0:05:30]} 24. h5 {[%emt 0:08:20]} Qg4 {[%emt 0:03:12]} 25. h6 {[%emt 0:02:33]} Qd1+ {[%emt 0:06:12]} 26. Kf2 {[%emt 0:00:47]} Qg4 {[%emt 0:00:46]} 27. f5 {[%emt 0:02:02]} Bh4+ {[%emt 0:07:03]} 28. Kg1 {[%emt 0:01:28]} Qd1+ {[%emt 0:02:55]} 29. Kh2 {[%emt 0:00:35]} f6 {[%emt 0:01:09]} 30. d6+ {[%emt 0:00:33]} Kf8 {[%emt 0:00:19]} 31. dxe7+ {[%emt 0:00:49]} Kxe7 {[%emt 0:00:13]} 32. Qe6+ {[%emt 0:03:57]} Kf8 {[%emt 0:00:14]} 33. Rc7 1-0

[Event "CZE-ch U12 Open 2023"]
[Site "Teplice"]
[Date "2023.03.13"]
[Round "4.11"]
[White "Krisica, Lukas"]
[Black "Sudrich, Radek"]
[Result "1/2-1/2"]
[ECO "D00"]
[WhiteElo "1342"]
[BlackElo "2054"]
[Annotator "TA"]
[PlyCount "67"]
[EventDate "2023.03.09"]
[EventType "swiss"]
[EventCountry "CZE"]
[SourceTitle "playchess.com"]
[Source "ChessBase"]
[SourceQuality "1"]
[TimeControl "40/5400+30:1800+30"]

{[%evp 9,67,-29,12,-30,-12,-19,-13,-16,-14,-18,0,-7,-6,-26,0,-8,26,16,3,-43,-52,-75,-74,-75,-66,-158,-158,-173,-163,-157,-138,-159,-128,-147,-50,-65,-33,-65,-65,-65,-65,-65,-16,-14,-22,-18,0,0,0,0,0,0,31,0,0,0,0,0,0,0]} 1. d4 {[%emt 0:01:49]} d5 {[%emt 0:02:12]} 2. e3 {[%emt 0:00:59]} Bf5 {[%emt 0:04:54]} 3. Bd3 {[%emt 0:00:57]} Bxd3 {[%emt 0:03:23]} 4. Qxd3 {[%emt 0:02:06]} Nf6 {[%emt 0:03:59]} 5. f4 {[%emt 0:01:52]} e6 {[%emt 0:01:18]} 6. Nf3 {[%emt 0:02:14] D00: 1 d4 d5: Unusual lines.} c6 {[%emt 0:01:51][%cal Bc7c6,Bc6c5,Bc5c4][%mdl 32]} 7. O-O {[%emt 0:02:27][%cal Bh1f1,Bf1f3,Bf3h3][%mdl 32]} Be7 {[%emt 0:03:00]} 8. Nbd2 {[%emt 0:04:52]} O-O {[%emt 0:07:29]} 9. Ne5 {[%emt 0:03:41]} Nbd7 {[%emt 0:05:27]} 10. Rf3 {[%emt 0:04:03]} c5 {[%emt 0:01:40]} 11. c3 {[%emt 0:02:45]} c4 {[%emt 0:02:40]} 12. Qc2 {[%emt 0:03:20]} Ne8 {[%emt 0:02:17][%cal Bf6e8,Be8d6,Bd6e4][%mdl 32]} 13. Rh3 {[%emt 0:01:55][%csl Gh3][%cal Rc2h7] [#]} f5 {[%emt 0:00:09][%cal Bf7f5,Bf5e4][%mdl 32] [#]} 14. Ndf3 $146 {[%emt 0:06:17]} (14. b3 $11) ({Predecessor:} 14. g4 Nd6 15. Nxd7 Qxd7 16. g5 Ne4 17. Nxe4 fxe4 18. Qg2 g6 19. Bd2 b5 20. a3 {½-½ Garcia Maicas,V (2063)-Tenev Gochev,P VLC CS-chT Preferente 2003}) 14... Nd6 $15 {[%emt 0:01:50]} 15. Nd2 {[%emt 0:03:15]} Nxe5 {[%emt 0:00:12]} 16. fxe5 {[%emt 0:00:34]} Ne4 {[%emt 0:00:10]} 17. Nxe4 {[%emt 0:00:08]} (17. Rf3 $15) 17... fxe4 $17 {[%emt 0:00:08]} 18. Qe2 {[%emt 0:01:29]} Qe8 {[%emt 0:03:49]} 19. Bd2 {[%emt 0:05:13]} Qf7 {[%emt 0:03:09]} 20. Be1 {[%emt 0:04:40]} a5 {[%emt 0:05:21]} 21. Bh4 {[%emt 0:05:39] [#]} Bxh4 {[%emt 0:00:17]} (21... b5 $1 $17 22. Bxe7 Qxe7) 22. Rxh4 $15 {[%emt 0:00:10]} h6 {[%emt 0:00:45]} (22... Qe7 {simplifies} 23. g3 b5 24. a3 b4) 23. Rf1 {[%emt 0:01:07]} Qxf1+ {[%emt 0:00:07]} 24. Qxf1 {[%emt 0:00:20]} Rxf1+ {[%emt 0:00:02]} 25. Kxf1 {[%mdl 4096] Endgame KR-KR} Ra6 (25... Rf8+ $15 26. Rf4 g5 {[%mdl 64] Pin} 27. Rxf8+ Kxf8) 26. Rf4 $1 $11 {[%emt 0:01:34]} Rb6 {[%emt 0:01:18]} 27. Rf2 {[%emt 0:00:25]} Rb5 {[%emt 0:00:31]} 28. g4 {[%emt 0:00:39]} Kh7 {[%emt 0:00:45]} 29. Kg2 {[%emt 0:00:35]} Kg6 {[%emt 0:00:59]} 30. Kg3 {[%emt 0:01:10]} h5 {[%emt 0:00:24]} 31. gxh5+ {[%emt 0:04:29]} Kxh5 {[%emt 0:00:09] The position is equal.} 32. h4 {[%emt 0:00:59]} g5 {[%emt 0:01:00]} 33. hxg5 {[%emt 0:00:41]} Kxg5 {[%emt 0:00:06]} 34. Kh3 {[%emt 0:02:40] Weighted Error Value: White=0.17 (very precise) /Black=0.18 (very precise)} 1/2-1/2